Cogmind - Beta 13 @@@ ROGUE MODE // 2024.07.02 @ 11:24:36 Player: Oozyorphan Result: Core destroyed Performance ------------- Evolutions (2) 1000 Regions Visited (5) 1000 Robots Destroyed (38) 190 Value Destroyed (1551) 1551 Prototype IDs (2) 40 Alien Tech Used (0) 0 Bonus (200) 200 TOTAL SCORE: 3981 Bonus ------- Entered Garrisons 200 Cogmind --------- Core Integrity 0/550 Matter 285/300 Energy 94/160 System Corruption 0% Temperature Critical (555) Movement Walking (125) Location -8/Garrison Parts ------- > --- POWER (2) -------- Light Nuclear Core > --- PROPULSION (3) --- Carbon-fiber Leg Titanium Leg Titanium Leg > --- UTILITY (3) ------ Cryofiber Web Advanced Weight Redist. System System Shield > --- WEAPON (3) ------- Heavy Laser Heavy Particle Cannon Heavy Particle Cannon > --- INVENTORY (5) ---- Aluminum Leg Visual Processing Unit EM Pulse Cannon Signal Generator Peak State ------------ > --- POWER ------------ Light Nuclear Core Light Nuclear Core > --- PROPULSION ------- Carbon-fiber Leg Titanium Leg Titanium Leg > --- UTILITY ---------- Cryofiber Web Advanced Weight Redist. System System Shield > --- WEAPON ----------- Heavy Laser EM Pulse Cannon Heavy Particle Cannon > --- INVENTORY -------- Visual Processing Unit Heavy Particle Cannon Signal Generator [Rating: 35] Favorites ----------- Power Light Nuclear Core Engine Deuterium Engine Power Core Light Nuclear Core Propulsion Titanium Leg Treads Light Treads Leg Titanium Leg Wheel Compact Wheel Utility Small Storage Unit Device Advanced Weight Redist. System Storage Small Storage Unit Hackware System Shield Protection Light Armor Plating Weapon Beam Rifle Energy Gun Beam Rifle Energy Cannon Heavy Particle Cannon Ballistic Gun Light Assault Rifle Ballistic Cannon Flak Cannon Build | -11 -10 -10 -9 -8 -8 ------- Run | Yrd Mat Min Mat Mat Gar Slots Evolved 4 | . . . 2 2 . Power 1 | . . . . 1 . Propulsion 1 | . . . 1 . . Utility 1 | . . . . 1 . Weapon 1 | . . . 1 . . Parts Attached 61 | 6 . 7 13 33 2 Power 15 | 1 . 2 2 10 . Engine 11 | 1 . 1 2 7 . Core 4 | . . 1 . 3 . Reactor . | . . . . . . Propulsion 18 | 2 . 2 3 10 1 Treads 8 | . . . 3 5 . Leg 8 | . . 2 . 5 1 Wheel 2 | 2 . . . . . Hover . | . . . . . . Flight . | . . . . . . Utility 8 | 1 . 1 2 4 . Device 5 | . . 1 1 3 . Storage 1 | 1 . . . . . Processor . | . . . . . . Hackware 1 | . . . . 1 . Protection 1 | . . . 1 . . Artifact . | . . . . . . Weapon 20 | 2 . 2 6 9 1 Energy Gun 8 | . . 2 3 3 . Energy Cannon 5 | . . . 1 3 1 Ballistic Gun 4 | 2 . . . 2 . Ballistic Cannon 3 | . . . 2 1 . Launcher . | . . . . . . Special Weapon . | . . . . . . Impact Weapon . | . . . . . . Slashing Weapon . | . . . . . . Piercing Weapon . | . . . . . . Special Melee Weapon . | . . . . . . Unidentified Prototypes . | . . . . . . Parts Lost 15 | . . 2 5 7 1 Power 5 | . . 1 1 2 1 Propulsion 3 | . . 1 1 1 . Utility 3 | . . . 1 2 . Weapon 4 | . . . 2 2 . Highest Loss Streak 6 | . . 1 3 6 1 To Critical Strikes . | . . . . . . Average Slot Usage (%) 86 | . 85 81 75 91 99 Engine 9 | . 14 12 6 11 . Core 5 | . . . 4 6 17 Treads 12 | . . . 18 13 . Leg 11 | . . . 9 12 27 Wheel 3 | . 28 22 . . . Device 6 | . . . 3 7 18 Storage 7 | . 14 14 11 4 . Hackware 5 | . . . . 8 9 Protection 2 | . . . 1 3 . Energy Gun 12 | . . . 11 16 9 Energy Cannon 4 | . . . 4 2 18 Ballistic Gun 5 | . 28 27 . 2 . Ballistic Cannon 1 | . . . 3 1 . Naked Turns . | . . . . . . Heaviest Build 38 | 12 12 13 27 38 27 Greatest Support 84 | 26 26 26 60 84 58 Greatest Overweight (x) 4 | 3 . 4 1 . . Average Overweight (x) . | . . . . . . Largest Inventory Capacity 8 | 8 8 8 8 8 5 Average Capacity 6 | 7 8 8 8 6 5 Most Carried 8 | 5 2 6 8 8 5 Average Carried 3 | 1 2 3 3 3 3 Final Capacity 8 | 8 8 8 8 5 5 Final Carried 4 | 2 2 2 3 3 4 Class Distribution -------------------- 36% | Mutant 17% | Scavenger-Gunner 17% | Gunner 14% | Scavenger-Tank 7% | Tank 5% | Scavenger-Mutant Dominant Class ---------------- Mutant | -10/Materials Mutant | -10/Mines Mutant | -9/Materials Scavenger-Gunner | -8/Materials Gunner | -8/Garrison Resources | -11 -10 -10 -9 -8 -8 ----------- Run | Yrd Mat Min Mat Mat Gar Matter Collected 1232 | 238 . 98 300 586 10 Remotely . | . . . . . . Salvage Created 1312 | . . 75 380 705 152 Parts 73 | . . 5 30 32 6 Haulers Intercepted . | . . . . . . Recyclers Shooed 1 | . . . 1 . . Parts Field Recycled . | . . . . . . Retrieved Matter . | . . . . . . Parts Self-Destructed . | . . . . . . Prevented . | . . . . . . Kills | -11 -10 -10 -9 -8 -8 ------- Run | Yrd Mat Min Mat Mat Gar Combat Hostiles Destroyed 35 | . . 2 12 17 4 Guns 18 | . . 2 3 12 1 Cannons 15 | . . . 9 4 2 AOE 1 | . . . . . 1 Classes Destroyed 6 | . . 1 4 1 . Worker 2 | . . . . 2 . Watcher 1 | . . . 1 . . Swarmer 7 | . . . 2 4 1 Grunt 22 | . . 2 6 11 3 Brawler 1 | . . . 1 . . Sentry 5 | . . . 3 2 . Best Kill Streak 5 | . . 1 3 5 3 Combat Bots Only 5 | . . 1 3 5 3 Max Kills in Single Turn 1 | . . 1 1 1 1 Gunslinging . | . . . . . . Exploded 1 | . . . . . 1 Melee . | . . . . . . Uniques/NPCs Destroyed . | . . . . . . Combat | -11 -10 -10 -9 -8 -8 -------- Run | Yrd Mat Min Mat Mat Gar Hostile Shots Fired 322 | . . 33 126 136 27 Missed 69 | . . 4 30 31 4 Damage Taken 3732 | . . 413 1202 1714 403 Core 1036 | . . 169 260 444 163 Absorbed by Shields . | . . . . . . Regen/Repaired (Parts) 39 | . . . . 39 . Core Remaining (%) 55 | 100 . 32 35 . . Volleys Fired 156 | . 1 20 53 73 9 Largest 3 | . 2 2 3 3 3 Hottest 209 | . 40 40 177 209 207 Shots Fired 293 | . 2 40 79 150 22 Gun 208 | . 2 40 31 131 4 Cannon 85 | . . . 48 19 18 Launcher . | . . . . . . Special . | . . . . . . Kinetic 118 | . 2 40 19 57 . Thermal 171 | . . . 60 93 18 Explosive . | . . . . . . Electromagnetic 4 | . . . . . 4 Robot Hit Streak 14 | . 1 14 9 7 6 Robot Miss Streak 13 | . 1 3 5 13 4 Penetration Max . | . . . . . . Secondary Targets 2 | . . . . 2 . Max Gunslinging Chain 1 | . . . . 1 . Shots Hit Robots 158 | . 1 28 43 75 11 Core Hits 84 | . . 12 20 45 7 Critical Kills . | . . . . . . Critical Parts Destroyed . | . . . . . . Critical Strikes 7 | . . . 2 5 . Burn 6 | . . . 1 5 . Blast 1 | . . . 1 . . Melee Attacks . | . . . . . . Impact . | . . . . . . Slashing . | . . . . . . Piercing . | . . . . . . Sneak Attacks . | . . . . . . Combat Hostiles . | . . . . . . Follow-up Attacks . | . . . . . . Damage Inflicted 3214 | . 9 229 1233 1319 424 Guns 1641 | . 9 229 221 1125 57 Cannons 1423 | . . . 1002 190 231 Explosions 136 | . . . . . 136 Melee . | . . . . . . Ramming 14 | . . . 10 4 . Kinetic 1538 | . 9 229 711 589 . Thermal 1581 | . . . 512 726 343 Explosive . | . . . . . . Electromagnetic 81 | . . . . . 81 Impact . | . . . . . . Slashing . | . . . . . . Piercing . | . . . . . . Highest Corruption 1 | . . . 1 . . Average Corruption 1 | . . . 1 . . Corruption Purged . | . . . . . . Corruption Blocked . | . . . . . . Effects 3 | . . . 3 . . Message Errors 1 | . . . 1 . . Data Loss (minor) 2 | . . . 2 . . Overload Shots . | . . . . . . Overflow Damage 25 | . . . 25 . . Projectiles 25 | . . . 25 . . Explosions . | . . . . . . Melee . | . . . . . . Knockbacks 5 | . . . 4 1 . Impact . | . . . . . . Kinetic 5 | . . . 4 1 . Secondary . | . . . . . . Self-Inflicted Damage . | . . . . . . Shots . | . . . . . . Rammed 1 | . . . 1 . . Targets Rammed 3 | . . . 2 1 . Kicked 2 | . . . 1 1 . Crushed . | . . . . . . Highest Temperature 671 | . . 28 600 671 579 Average Temperature 199 | . . 11 173 210 367 Received Heat Transfer 1527 | . . 249 459 747 72 Effects 61 | . . . 13 39 9 Shutdowns 11 | . . . 3 8 . Energy Bleed 7 | . . . 2 4 1 Interference 9 | . . . . 7 2 Matter Decay 3 | . . . 2 1 . Short Circuit 7 | . . . 2 4 1 Damage (minor) 2 | . . . 1 1 . Damage (major) 17 | . . . 2 12 3 Damage (core) 5 | . . . 1 2 2 Siege Activations . | . . . . . . Robots Corrupted . | . . . . . . Combat Hostiles . | . . . . . . Parts Fried . | . . . . . . Impact Corruptions . | . . . . . . Robots Melted 1 | . . . . 1 . Combat Hostiles 1 | . . . . 1 . Parts Melted 5 | . . . 2 3 . Heat Transferred 3629 | . . . 1111 2035 483 Parts Sabotaged . | . . . . . . Parts Stolen . | . . . . . . Parts Stripped . | . . . . . . Power Chain Reactions 1 | . . . . . 1 Alert | -11 -10 -10 -9 -8 -8 ------- Run | Yrd Mat Min Mat Mat Gar Peak Influence 267 | . 45 47 200 267 198 Initial 78 | . . 17 18 74 78 Average 108 | . 6 33 85 148 96 Maximum Alert Level 1 | . . . 1 1 . Low Security (%) 84 | 100 100 100 97 71 100 Level 1 15 | . . . 2 28 . Level 2 . | . . . . . . Level 3 . | . . . . . . Level 4 . | . . . . . . Level 5 . | . . . . . . High Security . | . . . . . . Max Security . | . . . . . . Squads Dispatched 3 | . . . 1 2 . Investigation 1 | . . . 1 . . Extermination . | . . . . . . Reinforcement 2 | . . . . 2 . Assault . | . . . . . . Garrison . | . . . . . . Intercept . | . . . . . . Searches Triggered . | . . . . . . Construction Impeded . | . . . . . . Haulers Reinforced . | . . . . . . Active Scanning Responses . | . . . . . . Cargo Convoy Interrupts . | . . . . . . Stealth | -11 -10 -10 -9 -8 -8 --------- Run | Yrd Mat Min Mat Mat Gar Distress Signals 2 | . . . 1 1 . Communications Jammed . | . . . . . . Distress Signals . | . . . . . . Times Spotted 56 | . 2 6 17 25 6 Peak Tracking Total 7 | . 3 2 7 6 3 Tactical Retreats 3 | . 1 . 2 . . Traps | -11 -10 -10 -9 -8 -8 ------- Run | Yrd Mat Min Mat Mat Gar Traps Triggered 2 | . . . 1 . 1 Indirectly . | . . . . . . Trap Hack Attempts . | . . . . . . Triggered . | . . . . . . Disarmed . | . . . . . . Reprogrammed . | . . . . . . Reused . | . . . . . . Traps Extracted . | . . . . . . Installed . | . . . . . . Triggered . | . . . . . . Machines | -11 -10 -10 -9 -8 -8 ---------- Run | Yrd Mat Min Mat Mat Gar Machines Disabled 5 | . . . 1 3 1 Max in Single Turn 1 | . . . 1 1 1 Garrison Relay 1 | . . . . . 1 Machines Repaired . | . . . . . . Machines Dismantled . | . . . . . . Machines Sabotaged . | . . . . . . Overloaded Fab Kills . | . . . . . . Hacking | -11 -10 -10 -9 -8 -8 --------- Run | Yrd Mat Min Mat Mat Gar Machines Accessed 8 | . 1 . . 6 1 Terminals 5 | . 1 . . 3 1 Fabricators . | . . . . . . Repair Stations 1 | . . . . 1 . Recycling Units . | . . . . . . Scanalyzers 1 | . . . . 1 . Garrison Access 1 | . . . . 1 . Total Hacks 14 | . 2 . . 11 1 Successful 10 | . 2 . . 8 . Failed 4 | . . . . 3 1 Catastrophic 2 | . . . . 2 . Database Lockouts . | . . . . . . Manual . | . . . . . . Terminals 7 | . 2 . . 4 1 Fabricators . | . . . . . . Repair Stations 4 | . . . . 4 . Recycling Units . | . . . . . . Scanalyzers 2 | . . . . 2 . Garrison Access 1 | . . . . 1 . Terminal Hacks 4 | . 2 . . 2 . Record 1 | . 1 . . . . Prototype ID Bank 1 | . . . . 1 . Alert Level 1 | . . . . 1 . Locate Traps 1 | . 1 . . . . Fabricator Hacks . | . . . . . . Repair Station Hacks 3 | . . . . 3 . Scan Component 2 | . . . . 2 . Repair 1 | . . . . 1 . Recycling Unit Hacks . | . . . . . . Scanalyzer 2 | . . . . 2 . Insert Component 1 | . . . . 1 . Analyze 1 | . . . . 1 . Garrison Access Hacks 1 | . . . . 1 . Unlock Access 1 | . . . . 1 . Unauthorized Hacks . | . . . . . . Terminals . | . . . . . . Fabricators . | . . . . . . Repair Stations . | . . . . . . Recycling Units . | . . . . . . Scanalyzers . | . . . . . . Garrison Access . | . . . . . . Data Cores Recovered . | . . . . . . Used . | . . . . . . Hacking Detections 5 | . 1 . . 3 1 Full Trace Events . | . . . . . . Feedback Events . | . . . . . . Feedback Blocked . | . . . . . . Robot Schematics Acquired . | . . . . . . Robots Built . | . . . . . . Authchips . | . . . . . . Time . | . . . . . . Total Robot Build Rating . | . . . . . . Part Schematics Acquired 1 | . . . . 1 . Parts Built . | . . . . . . Authchips . | . . . . . . Time . | . . . . . . Total Part Build Rating . | . . . . . . Parts Repaired 1 | . . . . 1 . Time 38 | . . . . 38 . Parts Recycled . | . . . . . . Recycled Matter . | . . . . . . Retrieved Matter . | . . . . . . Retrieved Components . | . . . . . . Parts Scanalyzed 1 | . . . . 1 . Part Schematics Acquired 1 | . . . . 1 . Parts Damaged . | . . . . . . Bothacking | -11 -10 -10 -9 -8 -8 ------------ Run | Yrd Mat Min Mat Mat Gar Used RIF Installer . | . . . . . . Robots Hacked . | . . . . . . Non-combat . | . . . . . . Combat . | . . . . . . Robot Hacks Applied . | . . . . . . Relay Couplers Released 4 | . . . . . 4 Machine Destruction 4 | . . . . . 4 Fabnet Peak Effective % . | . . . . . . Robots Rewired . | . . . . . . Allies Hacked . | . . . . . . Hacks Repelled . | . . . . . . Allies | -11 -10 -10 -9 -8 -8 -------- Run | Yrd Mat Min Mat Mat Gar Total Allies . | . . . . . . Largest Group . | . . . . . . Highest-Rated Group . | . . . . . . Highest-Rated Ally . | . . . . . . Total Orders . | . . . . . . Ally Attacks . | . . . . . . Total Damage . | . . . . . . Kills . | . . . . . . Allies Corrupted . | . . . . . . Allies Melted . | . . . . . . Intel | -11 -10 -10 -9 -8 -8 ------- Run | Yrd Mat Min Mat Mat Gar Robot Analysis Total . | . . . . . . Derelict Logs Recovered . | . . . . . . Drone Launches . | . . . . . . Drone Recoveries . | . . . . . . Exploration | -11 -10 -10 -9 -8 -8 ------------- Run | Yrd Mat Min Mat Mat Gar Turns Passed 2478 | 57 62 296 607 1280 176 Spaces Moved 1422 | 42 66 243 264 699 108 Core 19 | 17 . 2 . . . Treads 467 | . . . 155 312 . Legs 611 | . . 7 109 387 108 Wheels 325 | 25 66 234 . . . Hover . | . . . . . . Flight . | . . . . . . Fastest Speed 50 | 50 90 90 120 126 125 Average Speed 132 | 102 90 94 158 142 125 Slowest Speed 250 | 200 90 250 190 160 126 Overloaded Moves . | . . . . . . Propulsion Burnouts . | . . . . . . Robots Hopped . | . . . . . . Cave-ins Triggered . | . . . . . . Exploration Rate (%) 29 | 3 18 68 29 47 14 Regions Visited 5 Branch Regions 1 Pre-discovered Areas . | . . . . . . Known Exits Taken 1 | . . . . 1 . Unknown Exits Taken 4 | 1 1 1 1 . . Scrap Searched 1 | . . 1 . . . Spaces Dug . | . . . . . . Terrain Destroyed 16 | . . . 12 4 . Melee . | . . . . . . Projectile 16 | . . . 12 4 . AOE . | . . . . . . Terrain Rammed . | . . . . . . Walls Destroyed . | . . . . . . Machines Disabled . | . . . . . . Actions | -11 -10 -10 -9 -8 -8 --------- Run | Yrd Mat Min Mat Mat Gar Total 1765 | 55 66 279 370 862 133 Wait 29 | . . . 17 4 8 Move 1417 | 41 65 242 263 698 108 Hop . | . . . . . . Pick Up 62 | 8 . 6 15 31 2 Fast Attach . | . . . . . . Attach 53 | 6 . 5 13 27 2 Detach 2 | . . 1 . . 1 Swap 8 | . . 2 . 6 . Drop 33 | . . 3 7 22 1 Fire 156 | . 1 20 53 73 9 Melee . | . . . . . . Ram . | . . . . . . Kick 2 | . . . 1 1 . Crush 1 | . . . 1 . . Escape Stasis 2 | . . . . . 2 Rewire . | . . . . . . Trap . | . . . . . . Miscellaneous . | . . . . . . Route ------- -11/Scrapyard -10/Materials -10/Mines (discovered 2 exits: [*Mat x2]) -9/Materials -8/Materials -8/Garrison History --------- Turn | Location | Event 30 | -11/Scrapyard | Discovered new exit (range 16) 58 | -11/Scrapyard | Entered Materials 69 | -10/Materials | Discovered new exit (range 13) 120 | -10/Materials | Entered Mines 137 | -10/Mines | Discovered new exit (range 5) 140 | -10/Mines | Met a Derelict testing a Signal Generator 144 | -10/Mines | Found Signal Generator 306 | -10/Mines | Build established: Mutant 327 | -10/Mines | Core integrity fell below 50% 364 | -10/Mines | Discovered new exit (range 15) 416 | -10/Mines | Entered Materials 416 | -9/Materials | Evolved 2 slots: Propulsion x1, Weapon x1 710 | -9/Materials | Lost 3 parts (1p1n1w) 792 | -9/Materials | Core integrity fell below 50% 1006 | -9/Materials | Discovered new exit (range 10) 1023 | -9/Materials | Entered another Materials area 1023 | -8/Materials | Evolved 2 slots: Power x1, Utility x1 1199 | -8/Materials | Build established: Scavenger-Tank 1629 | -8/Materials | Core integrity fell below 50% 1665 | -8/Materials | Lost 6 parts (2p1n1u2w) 2000 | -8/Materials | Repaired Lgt. Nuclear Core 2021 | -8/Materials | Core integrity fell below 20% 2154 | -8/Materials | Build established: Scavenger-Gunner 2284 | -8/Materials | Identified exit to Garrison 2303 | -8/Materials | Entered Garrison 2353 | -8/Garrison | Triggered checkpoint 2427 | -8/Garrison | Triggered checkpoint 2465 | -8/Garrison | Triggered checkpoint 2470 | -8/Garrison | Build established: Gunner 2473 | -8/Garrison | Garrison Relay disabled 2480 | -8/Garrison | Core destroyed Last Messages --------------- Power failure averted by Cryofiber Web. Acquired Carbon-fiber Leg. Power failure averted by Cryofiber Web. Titanium Leg broken. Overheating: Short circuit. Power failure averted by Cryofiber Web. Connecting with Garrison Terminal... Beams of light sweep through the air. An alarm sounds. S-10 Pest destroyed. Lgt. Nuclear Core destroyed. Power failure averted by Cryofiber Web. Garrison Relay disabled. Relay Coupler [Swarmer] tumbles out of relay unit. Relay Coupler [Specialist] tumbles out of relay unit. Relay Coupler [Grunt] tumbles out of relay unit. Relay Coupler [NC] tumbles out of relay unit. Overheating: Core damaged (-60). Map ----- +----------------------------------------------------+ | | | | | | | | | | | | | | | | | | | | | | | ???????????????????????????????????? | | ???????????????????????????????????? | | ???????????????????????????????????? | | ???????????????????????????????????? | | ???????????????????????????????????? | | ???????????????????????????????????? | | ???????????????????????????????????? | | ???????????????????????????????????? | | ???????????????????????????????????? | | ???????????????###?????????????????? | | ??????????######T###########???????? | | ??????????# #???????? | | ??????????# ^ #???????? | | ??????????# ###!% ###### #???????? | | ??????????# #?#% %#????#@ #???????? | | ??????????# #?#####????#s=#???????? | | ??????????# #?????????? [!!"??????? | | ??????????# #??????????s ! #?????? | | ??????????# #????????? !"#?????? | | ??????????# #?????????## #"#?????? | | ????????### #??????????# ###?????? | | ????????# #??????????# #???????? | | ????????# #?????????? #???????? | | ????????# #??????????####???????? | | ????????### #?????????????????????? | | ??????????# #?????????????????????? | | ??????????# #?????????????????????? | | ??????????# #?????????????????????? | | ??????????# #?????????????????????? | | ??????????# #?????????????????????? | | ??????????# #?????????????????????? | | ??????????# #?????????????????????? | | ########### #?????????????????????? | | #?????????????????????? | | #?????????????????????? | | ##############?????????????????????? | | ???????????????????????????????????? | | ???????????????????????????????????? | | ???????????????????????????????????? | +----------------------------------------------------+ Best States ------------- Heat Dissipation 45 Energy Generation 23 Energy Capacity 450 Matter Stores 300 Matter Capacity 300 Sight Range 16 Terrain Scan Density 10 Additional Mass Support 9 Base Temperature (-) 100 Armor Coverage 150 Evasion (%) 55 Recoil Reduction 3 Particle Charging 15 Defensive Hacking 10 Item Schematics ----------------- Hvy. Particle Cannon | -8/Materials | Scanalyzed Robot Schematics ------------------ None Fabricated ------------ Nothing Alien Tech Used ----------------- None Achievements -------------- None Challenges ------------ None Game ------ Seed MinesnifferSurgeBarrier Manual? 0 Play Time 00:27:11 Cumulative 1.5 hours Start 2024.04.05 @ 20:46:33 End 2024.07.02 @ 11:24:36 Sessions 3 Manual Loads 0 Difficulty Rogue Special Mode None Game No. 5 Rogue 5 Adventurer 0 Explorer 0 Win Type - Total 0 Types 0/0/0/0/0/0/0/0/0 Lore% 1 Gallery% 9 Achievement% 7 Wizard Run 0 Options --------- Layout 1 ASCII 0 Keyboard 0 Movement Mouse Keybinds 0 Fullscreen 1 Font 32/SmallcapsGlow Map View 50x35 Zoom Use 0% Tactical HUD 0 Map Filters NONE Filters NONE Steam 1 RUN: 002f6d89-095e-4730-8aab-76b7d7f48622